bitfinex/quotes_ETHUSD_20250210
["timestamp","ask_amount","ask_price","bid_price","bid_amount"]
[1739226169901,4.53335,2669.1,2668.6,4.54391]
[1739226170103,0.04635548,2669.0,2668.6,4.54391]
[1739226170830,3.79313548,2669.0,2668.6,0.7967]
[1739226171341,3.74692,2668.9,2668.6,0.7967]
[1739226171715,0.04612542,2668.8,2668.6,0.7967]
[1739226171919,3.74672,2669.0,2668.6,0.7967]
[1739226172227,0.04624045,2668.9,2668.6,0.7967]
[1739226172547,3.79311045,2668.9,2668.6,0.7967]
[1739226172697,0.04624045,2668.9,2668.6,0.7967]
[1739226173302,3.79318045,2668.9,2668.6,0.7967]
[1739226175171,3.79318045,2668.9,2668.4,3.74746]
[1739226175448,7.54016045,2668.9,2668.4,3.74746]
[1739226175605,3.79318045,2668.9,2668.4,3.74746]
[1739226176462,3.79318045,2668.9,2668.5,3.74742]
[1739226179126,3.79318045,2668.9,2668.4,3.74755]
[1739226180659,3.74736,2668.6,2668.2,0.75163472]
[1739226180972,0.04624045,2668.9,2668.0,0.7504]
[1739226180973,7.49531,2668.4,2668.0,0.7504]
[1739226181270,3.74807,2668.1,2667.7,0.7504]
[1739226181472,3.74794,2668.2,2667.7,0.7504]
[1739226181675,4.50523,2668.5,2667.7,0.7504]
[1739226181676,0.04527527,2668.0,2667.7,0.7504]
[1739226181840,4.55131037,2668.1,2667.7,0.7504]
[1739226182041,0.04559291,2667.9,2667.7,0.7504]
[1739226182257,4.50592,2668.1,2667.7,0.7504]
[1739226182422,0.04547779,2667.8,2667.7,0.7504]
[1739226183063,3.74814,2668.0,2667.7,0.7504]
[1739226183361,4.50592,2668.1,2667.7,0.7504]
[1739226183559,0.04559291,2667.9,2667.7,0.7504]
[1739226183738,4.5059,2668.1,2667.7,0.7504]
[1739226183938,0.04528104,2667.8,2667.7,0.7504]
[1739226184170,4.5059,2668.1,2667.7,0.7504]
[1739226184346,0.04534414,2667.8,2667.7,0.7504]
[1739226184548,4.5059,2668.1,2667.6,0.7346908]
[1739226184766,0.04534414,2667.8,2667.5,0.7504]
[1739226185060,3.74819,2668.0,2667.5,4.49921]
[1739226185229,0.04522901,2667.7,2667.5,4.49921]
[1739226185541,3.74819,2668.0,2667.5,5.23878023]
[1739226185743,3.74819,2668.0,2667.5,4.49921]
[1739226185940,3.79359103,2667.9,2667.4,3.7489]
[1739226186141,3.74841,2667.8,2667.4,3.7489]
[1739226186352,3.74841,2667.8,2667.3,0.8106]
[1739226186353,4.54485,2667.7,2667.3,0.8106]
[1739226186553,4.58990403,2667.7,2667.2,3.74919]
[1739226186949,4.58990403,2667.7,2667.2,3.74917]
[1739226187281,4.58990403,2667.7,2667.2,7.49832]
[1739226187443,4.58990403,2667.7,2667.2,3.74915]
[1739226187645,0.84135403,2667.7,2667.3,3.74902]
[1739226189064,0.84135403,2667.7,2667.4,3.74883]
[1739226189760,0.84135403,2667.7,2667.2,3.74912]
[1739226190136,0.7963,2667.7,2667.3,3.74906]
[1739226190259,0.04542793,2667.6,2667.3,3.74906]
[1739226191396,0.04542793,2667.6,2667.4,3.74894]
[1739226192088,0.04542793,2667.6,2667.3,3.7491]
[1739226193682,0.04542793,2667.6,2667.2,3.74912]
[1739226193906,0.04542793,2667.6,2667.3,3.7491]
[1739226194195,0.04516206,2667.5,2667.3,3.7491]
[1739226194571,0.7963,2667.7,2667.3,3.7491]
[1739226195114,0.04527719,2667.6,2667.3,3.7491]
[1739226196395,0.04527719,2667.6,2667.4,3.74891]
[1739226198490,0.04527719,2667.6,2667.5,4.56352]
[1739226198694,0.04527719,2667.6,2667.5,4.60850598]
[1739226198870,4.56186,2668.7,2668.1,3.74792]
[1739226199075,3.74743,2668.5,2667.9,0.8147]
[1739226199287,3.74743,2668.5,2667.9,4.56285]
[1739226199470,0.04416615,2668.4,2668.3,3.7477]
[1739226199794,0.8147,2668.7,2668.5,3.74741]
[1739226200000,0.8147,2668.9,2668.5,3.74741]
[1739226200797,0.8147,2668.9,2668.3,8.30997]
[1739226200993,0.8147,2668.9,2668.3,4.56227]
[1739226201200,0.8147,2668.9,2668.4,3.74746]
[1739226201820,0.8147,2668.9,2668.3,4.56227]
[1739226201987,4.56164,2668.9,2668.3,4.56227]
[1739226202186,0.8147,2668.9,2668.3,4.56227]
[1739226202386,0.04291844,2668.8,2668.4,3.74746]
[1739226202608,0.04291844,2668.8,2668.5,3.74741]
[1739226203201,0.04291844,2668.8,2668.5,7.49482]
[1739226203532,0.04291844,2668.8,2668.6,3.74726]
[1739226203733,0.04291844,2668.8,2668.6,3.78473098]
[1739226203880,0.8155,2669.2,2669.0,3.74666]
[1739226204079,0.04326353,2669.1,2669.0,3.74666]
[1739226204381,0.04326353,2669.1,2668.8,3.74692]
[1739226204382,0.04326353,2669.1,2668.8,7.49379]
[1739226204609,0.04326353,2669.1,2668.9,3.74684]
[1739226205015,0.04326353,2669.1,2669.0,3.74672]
[1739226205194,0.04326353,2669.1,2668.9,3.74686]
[1739226205785,4.56166,2669.4,2668.9,3.74686]
[1739226205986,0.04344804,2669.0,2668.9,3.74686]
[1739226206222,4.56166,2669.4,2668.9,3.74686]
[1739226206422,0.04344804,2669.0,2668.9,3.74686]
[1739226206626,4.56166,2669.4,2668.9,3.74686]
[1739226206918,4.56166,2669.4,2668.8,3.74696]
[1739226207123,0.04379304,2669.3,2668.9,3.74683]
[1739226207918,0.04379304,2669.3,2668.7,0.7622]
[1739226208084,0.04379304,2669.3,2669.2,3.74644]
[1739226208284,0.8155,2669.6,2669.2,0.79965986]
[1739226208643,0.8155,2669.6,2669.2,4.54604986]
[1739226209121,0.8155,2669.6,2669.2,0.79965986]
[1739226209289,4.56139,2669.6,2669.2,0.7622]
[1739226209489,0.04267675,2669.5,2669.2,0.7622]
[1739226209690,0.04267675,2669.5,2669.2,0.79966023]
[1739226210400,0.04267675,2669.5,2669.2,0.7622]
[1739226210805,0.04267675,2669.5,2669.2,4.50859]
[1739226211093,0.04267675,2669.5,2669.2,0.79966034]
[1739226211292,0.04267675,2669.5,2669.2,0.7622]
[1739226211510,0.04267675,2669.5,2669.2,0.79966038]
[1739226212118,0.04267675,2669.5,2669.2,4.54604038]
[1739226212319,0.04267675,2669.5,2669.2,0.79966038]
[1739226212524,0.04267675,2669.5,2669.2,0.7622]
[1739226213104,0.04267675,2669.5,2669.2,4.50852]
[1739226213627,0.04267675,2669.5,2669.3,3.74629]
[1739226215827,0.04267675,2669.5,2669.3,3.74621]
[1739226216047,0.04267675,2669.5,2669.4,3.74616]
[1739226216210,0.04267675,2669.5,2669.2,4.54597038]
[1739226216409,4.56117,2669.8,2669.2,4.54597038]
[1739226216615,4.56117,2669.8,2669.3,3.74619]
[1739226216816,0.04095478,2669.7,2669.3,3.74619]
[1739226217053,0.04095478,2669.7,2669.4,0.03745814]
[1739226217252,4.56117,2669.8,2669.4,3.78360814]
[1739226217543,0.8155,2669.8,2669.4,3.74615]
[1739226217933,4.56113,2669.8,2669.2,4.50853]
[1739226218244,4.56113,2669.8,2669.2,4.50863]
[1739226218540,3.7458,2669.7,2669.2,4.50863]
[1739226220546,0.04040598,2669.6,2669.2,4.50863]
[1739226221440,3.78631598,2669.6,2669.2,0.7622]
[1739226221663,3.74609,2669.5,2669.2,0.7622]
[1739226221963,3.78631598,2669.6,2668.8,5.29108736]
[1739226221964,0.7696,2669.4,2668.8,5.29108736]
[1739226222148,4.55599604,2669.4,2668.9,3.74676]
[1739226224037,0.80977604,2669.4,2669.0,0.03746326]
[1739226224203,0.73727604,2669.4,2669.1,3.74658]
[1739226224911,0.73727604,2669.4,2669.1,7.49307]
[1739226225343,0.04017604,2669.4,2669.2,3.74637]
[1739226225520,3.74574,2669.7,2669.2,3.74637]
[1739226225723,0.04033566,2669.6,2669.2,3.74637]
[1739226226746,0.04033566,2669.6,2669.2,7.49273]
[1739226226942,0.04033566,2669.6,2669.3,3.74622]
[1739226227149,3.74577,2669.7,2669.2,3.74636]
[1739226227348,0.80993566,2669.6,2669.2,3.74636]
[1739226228025,4.55582566,2669.6,2669.2,3.74636]
[1739226229449,0.80993566,2669.6,2669.2,3.74636]
[1739226229751,0.80993566,2669.6,2669.2,4.54436]
[1739226230244,0.80993566,2669.6,2669.2,4.54435]
[1739226231652,0.80993566,2669.6,2669.2,8.2907]
[1739226232154,0.80993566,2669.6,2669.3,3.74623]
[1739226232331,0.04033566,2669.6,2669.3,3.74623]
[1739226232531,8.25886,2669.8,2669.3,3.74623]
[1739226233252,4.51317,2669.8,2669.3,3.74623]
[1739226234757,8.25887,2669.8,2669.3,3.74623]
[1739226234945,4.51317,2669.8,2669.3,3.74623]
[1739226235242,0.03890123,2669.7,2669.3,3.74623]
[1739226235651,4.51317,2669.8,2669.3,3.74623]
[1739226235866,0.03878626,2669.6,2669.3,3.74623]
[1739226236172,0.03890123,2669.7,2669.3,3.74623]
[1739226236336,4.51317,2669.8,2669.3,3.74623]
[1739226236849,0.03890123,2669.7,2669.3,3.74623]
[1739226237053,4.51317,2669.8,2669.3,3.74623]
[1739226237224,0.03878626,2669.6,2669.3,3.74623]
[1739226237423,4.51317,2669.8,2669.3,3.74623]
[1739226237682,0.03867129,2669.5,2669.3,3.74623]
[1739226237955,8.25884,2669.8,2669.3,3.74623]
[1739226238168,0.03855631,2669.4,2669.3,3.74623]
[1739226238316,4.51317,2669.8,2669.3,3.74623]
[1739226238519,0.03855631,2669.4,2669.3,3.74623]
[1739226238721,4.5131,2669.8,2669.3,3.74623]
[1739226238921,0.03855631,2669.4,2669.3,3.74623]
[1739226239118,3.74574,2669.7,2669.3,3.74623]
[1739226239318,0.03855631,2669.4,2669.3,3.74623]
[1739226239957,3.74574,2669.7,2669.3,3.74623]
[1739226240152,0.03855631,2669.4,2669.3,3.74623]
[1739226240648,3.74575,2669.7,2669.3,3.74623]
[1739226240835,0.03855631,2669.4,2669.3,3.74623]
[1739226241036,3.74575,2669.7,2669.3,3.74623]
[1739226241262,0.03855631,2669.4,2669.3,3.74623]
[1739226241852,3.74575,2669.7,2669.3,3.74623]
[1739226242059,0.03855631,2669.4,2669.3,3.74623]
[1739226242258,3.74575,2669.7,2669.3,3.74623]
[1739226242553,0.03855631,2669.4,2669.3,3.74623]
[1739226243057,0.7675,2669.8,2669.2,0.798]
[1739226243230,4.51316,2669.8,2669.4,3.74604]
[1739226243659,4.51316,2669.8,2669.3,3.74628]
[1739226244959,3.74574,2669.7,2669.3,3.74628]
[1739226245877,0.03884931,2669.6,2669.3,3.74628]
[1739226246374,0.03884931,2669.6,2669.2,4.54436]
[1739226246375,0.03884931,2669.6,2669.5,3.74601]
[1739226246541,0.7675,2669.8,2669.3,3.7463]
[1739226246876,0.03896912,2669.7,2669.3,3.7463]
[1739226247074,4.51309,2669.8,2669.2,4.54432]
[1739226247276,4.51309,2669.8,2669.2,8.29068]
[1739226247277,0.03885416,2669.6,2669.2,8.29068]
[1739226247572,3.74579,2669.7,2669.2,8.29068]
[1739226247763,0.03873919,2669.5,2669.2,8.29068]
[1739226247959,0.03885416,2669.6,2669.2,4.54432]
[1739226248173,0.03862421,2669.4,2669.3,3.74626]
[1739226248338,3.74579,2669.7,2669.2,4.54432]
[1739226248757,3.74579,2669.7,2669.2,8.29066]
[1739226249036,0.03879901,2669.6,2669.2,8.29066]
[1739226249373,0.03879901,2669.6,2669.2,4.54432]
[1739226250980,0.03879901,2669.6,2669.3,3.74618]
[1739226251163,3.74581,2669.7,2669.2,4.54432]
[1739226251368,0.03875962,2669.6,2669.2,4.54432]
[1739226253012,0.03875962,2669.6,2669.2,8.29069]
[1739226253317,0.03875962,2669.6,2669.2,4.54432]
[1739226253508,0.03875962,2669.6,2669.3,3.74623]
[1739226253821,0.03868403,2669.5,2669.3,3.74623]
[1739226253986,3.74577,2669.7,2669.3,3.74623]
[1739226254189,0.03879901,2669.6,2669.3,3.74623]
[1739226255718,0.03879901,2669.6,2669.2,4.54442]
[1739226256214,0.03879901,2669.6,2669.3,3.74622]
[1739226256413,4.51311,2669.8,2669.3,3.74622]
[1739226256991,0.03951345,2669.7,2669.3,3.74622]
[1739226257190,0.7511,2670.0,2669.5,3.74591]
[1739226257384,0.7511,2670.0,2669.7,3.74563]
[1739226257905,0.7511,2670.0,2669.6,3.74587]
[1739226259146,0.7511,2670.0,2669.7,3.74566]
[1739226259444,0.7511,2670.0,2669.7,0.03745345]
[1739226259736,0.7511,2670.0,2669.6,7.4916]
[1739226259901,0.03955896,2669.9,2669.7,0.03745312]
[1739226260097,0.03955896,2669.9,2669.7,3.78318312]
[1739226260637,0.03955896,2669.9,2669.6,3.74579]
[1739226261699,0.03955896,2669.9,2669.7,3.74572]
[1739226265661,3.74518,2670.1,2669.7,3.74572]
[1739226265798,0.7756,2670.2,2669.7,3.74572]
[1739226265799,0.03951686,2669.8,2669.7,3.74572]
[1739226266102,0.7756,2670.2,2669.7,3.74572]
[1739226266103,0.7756,2670.2,2669.8,3.74553]
[1739226266297,4.52064,2670.2,2669.8,3.74553]
[1739226266694,0.7756,2670.2,2669.8,3.74553]
[1739226267933,0.7756,2670.4,2670.1,3.7451]
[1739226268108,0.7756,2670.4,2670.0,3.74525]
[1739226268312,0.7756,2670.4,2670.0,7.49048]
[1739226268503,0.7756,2670.4,2670.0,3.74523]
[1739226269213,0.7756,2670.4,2670.0,7.49047]
[1739226269411,0.03990754,2670.3,2670.1,3.74506]
[1739226269722,4.52008,2670.6,2670.1,3.74506]
[1739226269923,0.03825385,2670.2,2670.1,3.74506]
[1739226270125,4.52008,2670.6,2670.1,3.74506]
[1739226270312,0.03807758,2670.2,2670.1,3.74506]
[1739226270513,4.52008,2670.6,2670.1,3.74506]
[1739226270832,3.74474,2670.5,2670.0,3.74523]
[1739226271013,3.78316225,2670.5,2670.0,7.49045]
[1739226271214,3.78316225,2670.5,2670.0,7.49046]
[1739226271426,3.78316225,2670.5,2670.0,7.49043]
[1739226271630,0.03842225,2670.5,2670.1,3.74505]
[1739226273203,0.03842225,2670.5,2670.3,3.74487]
[1739226273444,0.03842225,2670.5,2670.2,3.74503]
[1739226274852,0.03842225,2670.5,2670.1,3.74508]
[1739226275047,0.03842225,2670.5,2670.0,3.74524]
[1739226275204,4.52008,2670.6,2670.0,3.74524]
[1739226275407,4.5610898,2670.6,2670.2,3.74503]
[1739226276338,8.3056798,2670.6,2670.1,3.74517]
[1739226276503,3.74462,2670.5,2670.1,3.74517]
[1739226277135,4.52015,2670.6,2670.1,3.74517]
[1739226277345,4.52015,2670.6,2670.1,7.49026]
[1739226277518,4.56112305,2670.6,2670.1,7.49026]
[1739226277841,0.81657305,2670.6,2670.2,3.745]
[1739226278416,4.56106305,2670.6,2670.2,3.745]
[1739226279621,0.81657305,2670.6,2670.2,3.74496]
[1739226279822,0.81657305,2670.6,2670.2,4.54906]
[1739226280285,4.56115305,2670.6,2670.2,0.8041]
[1739226282440,4.56115305,2670.6,2670.2,4.54912]
[1739226282823,4.56115305,2670.6,2670.2,0.8041]
[1739226283748,0.04097305,2670.6,2670.5,4.54871]
[1739226284122,0.7756,2671.0,2670.5,4.54871]
[1739226284316,4.51953,2671.0,2670.5,4.54871]
[1739226284518,0.04123414,2670.9,2670.6,3.7444]
[1739226284726,0.04123414,2670.9,2670.5,0.8041]
[1739226284930,0.7756,2671.2,2670.8,3.74419]
[1739226285455,0.03836465,2671.1,2670.8,3.74419]
[1739226287424,4.51909,2671.4,2670.9,4.54814]
[1739226287623,4.51909,2671.4,2670.9,4.54803]
[1739226287834,0.03590261,2671.3,2670.9,8.292]
[1739226288036,0.03590261,2671.3,2670.9,4.54803]
[1739226288352,0.03590261,2671.3,2670.9,8.32944577]
[1739226288555,0.03590261,2671.3,2670.9,8.29199]
[1739226289355,0.03590261,2671.3,2670.9,4.54815]
[1739226289754,0.03590261,2671.3,2670.9,8.2921]
[1739226289923,0.03590261,2671.3,2670.9,4.54805]
[1739226290120,0.03590261,2671.3,2671.0,3.74391]
[1739226290534,3.7428,2671.8,2671.1,3.74377]
[1739226290736,0.03591076,2671.2,2671.1,3.74377]
[1739226290936,3.74293,2671.7,2671.1,3.74377]
[1739226291146,3.74293,2671.7,2671.2,4.53551]
[1739226291346,0.03602928,2671.6,2671.2,4.53543]
[1739226291959,0.03602928,2671.6,2671.3,3.74349]
[1739226292337,3.74296,2671.7,2671.3,3.74349]
[1739226292848,3.7428,2671.8,2671.3,3.74349]
[1739226294067,3.74318,2671.6,2671.2,0.7919]
[1739226294250,0.7756,2671.9,2671.4,3.74328]
[1739226294560,3.74298,2671.7,2671.2,4.53546]
[1739226294857,3.74289,2671.8,2671.2,4.53546]
[1739226294858,3.74289,2671.8,2671.2,0.7919]
[1739226295063,3.7431,2671.6,2671.2,0.7919]
[1739226295663,3.7431,2671.6,2671.2,4.5355]
[1739226297362,3.74295,2671.7,2671.2,4.5355]
[1739226297662,3.74303,2671.7,2671.2,4.5355]
[1739226297849,3.74289,2671.8,2671.3,3.74347]
[1739226300043,7.4858,2671.8,2671.3,3.74347]
[1739226300376,0.77496016,2672.5,2670.9,9.14154]
[1739226300377,0.7914,2672.4,2670.9,9.14154]
[1739226300669,0.7914,2672.0,2671.1,0.8236]
[1739226300832,3.74329,2671.5,2671.1,0.8236]
[1739226301031,3.74329,2671.5,2671.1,1.57292532]
[1739226301233,3.74339,2671.4,2671.1,1.57292532]
[1739226301432,3.74329,2671.5,2671.1,1.57292532]
[1739226301633,0.7914,2671.6,2671.1,1.57292532]
[1739226301854,0.7914,2671.6,2671.2,3.74356]
[1739226302060,3.74298,2671.7,2671.2,3.74356]
[1739226302574,3.74298,2671.7,2671.2,3.74353]
[1739226302951,3.74298,2671.7,2671.2,7.48709]
[1739226303144,3.74298,2671.7,2671.2,3.74353]
[1739226304070,3.74298,2671.7,2671.2,7.48708]
[1739226304257,3.74298,2671.7,2671.2,3.74353]
[1739226304963,4.53433,2671.8,2671.2,3.74353]
[1739226305664,8.27724,2671.8,2671.3,3.74349]
[1739226305864,3.74293,2671.7,2671.2,3.74353]
[1739226306069,3.74293,2671.7,2671.2,7.48708]
[1739226306572,4.53431,2671.8,2671.3,3.74348]
[1739226307549,3.74299,2671.7,2671.2,3.74353]
[1739226307752,4.53431,2671.8,2671.2,3.74363]
[1739226307966,4.53431,2671.8,2671.3,3.74343]
[1739226309274,3.74295,2671.7,2671.3,3.74343]
[1739226309772,3.74295,2671.7,2671.2,3.74359]
[1739226313373,7.48599,2671.7,2671.2,3.74359]
[1739226313572,3.74295,2671.7,2671.2,3.74359]
[1739226313777,3.74295,2671.7,2671.3,3.74344]
[1739226313975,0.7914,2671.8,2671.4,3.74321]
[1739226314193,4.5342,2671.8,2671.3,3.74349]
[1739226314794,3.74295,2671.7,2671.3,3.74349]
[1739226315863,0.7914,2671.8,2671.4,3.74328]
[1739226317900,0.7914,2671.8,2671.5,3.74319]
[1739226318064,0.7914,2671.8,2671.4,3.74328]
[1739226323808,0.7914,2671.8,2671.4,7.48657]
[1739226324307,0.7914,2671.8,2671.4,3.74328]
[1739226326182,0.7914,2671.8,2671.2,3.74356]
[1739226326383,3.74307,2671.6,2670.9,3.74397]
[1739226326600,0.7516,2671.2,2670.8,7.48822]
[1739226327513,0.7516,2671.2,2670.9,3.74404]
[1739226328975,0.7516,2671.2,2670.8,3.74419]
[1739226329199,4.49527,2671.2,2670.7,4.52145]
[1739226329507,3.74384,2671.1,2670.6,6.74445]
[1739226329687,3.74384,2671.1,2670.6,3.74445]
[1739226330502,4.49527,2671.2,2670.6,3.74445]
[1739226330683,0.7516,2671.1,2670.6,7.48883]
[1739226330885,0.7516,2671.1,2670.6,3.74438]
[1739226331096,4.49551,2671.1,2670.6,3.74438]
[1739226332606,3.74407,2670.9,2670.5,5.39]
[1739226332850,0.7516,2670.9,2670.5,9.13461]
[1739226333171,0.7516,2670.9,2670.5,5.39]
[1739226333628,4.49574,2670.9,2670.5,5.39]
[1739226334114,0.7516,2670.9,2670.5,5.39]
[1739226334279,0.7516,2670.9,2670.5,9.13453]
[1739226334481,0.7516,2670.9,2670.5,5.39]
[1739226334811,0.7516,2670.9,2670.4,3.74464]
[1739226335331,4.49565,2670.9,2670.4,3.74464]
[1739226335806,4.49565,2670.9,2670.4,7.4893]
[1739226336624,4.49565,2670.9,2670.2,4.52213]
[1739226336834,3.74428,2670.8,2670.3,3.74488]
[1739226340132,3.74428,2670.8,2670.4,0.0075]
[1739226341739,4.49565,2670.9,2670.5,3.74459]
[1739226342050,4.49565,2670.9,2670.4,0.0075]
[1739226342258,4.49565,2670.9,2670.4,3.75224]
[1739226342400,8.23983,2670.9,2670.4,3.75224]
[1739226342736,4.49565,2670.9,2670.4,3.75224]
[1739226343109,4.49565,2670.9,2670.5,3.74457]
[1739226343616,4.49565,2670.9,2670.4,3.75224]
[1739226343838,8.23979,2670.9,2670.4,3.75224]
[1739226344145,4.49565,2670.9,2670.5,3.74459]
[1739226344318,4.49565,2670.9,2670.4,3.74474]
[1739226344508,3.74423,2670.8,2670.4,3.74474]
[1739226345255,8.23979,2670.9,2670.4,3.74474]
[1739226345557,4.49565,2670.9,2670.4,3.74474]
[1739226345705,8.23984,2670.9,2670.4,3.74474]
[1739226346139,4.49565,2670.9,2670.4,3.74474]
[1739226346505,3.74427,2670.8,2670.3,3.75238]
[1739226347706,0.7516,2670.6,2669.8,9.5272]
[1739226348038,0.7516,2670.2,2669.8,3.74551]
[1739226348243,4.49669,2670.2,2669.7,3.0]
[1739226348545,4.49669,2670.2,2669.7,6.74566]
[1739226349537,4.49669,2670.2,2669.7,3.74566]
[1739226349714,0.7516,2670.2,2669.8,0.0075]
[1739226352057,0.7516,2670.2,2669.8,3.75307]
[1739226353259,4.49663,2670.2,2669.8,3.75307]
[1739226354071,0.7516,2670.2,2669.8,3.75307]
[1739226354473,4.49665,2670.2,2669.8,3.75307]
[1739226354867,0.7516,2670.2,2669.8,3.75307]
[1739226355241,4.49664,2670.2,2669.8,3.75307]
[1739226356656,0.7516,2670.2,2669.8,0.0075]
[1739226356844,3.74519,2670.1,2669.8,0.0075]
[1739226357560,0.7516,2670.2,2669.8,0.0075]
[1739226357756,4.49673,2670.2,2669.8,0.0075]
[1739226358326,0.7958,2670.7,2670.0,3.74529]
[1739226358526,0.7958,2670.7,2669.5,0.75724965]
[1739226358527,0.7958,2670.7,2670.4,3.74467]
[1739226359228,0.7958,2670.7,2670.5,3.74448]
[1739226359663,3.74396,2671.0,2670.4,3.74467]
[1739226359961,0.7958,2670.9,2670.5,3.74461]
[1739226360863,0.7958,2670.9,2670.4,3.74467]
[1739226361058,4.53988,2670.9,2670.4,3.74467]
[1739226361554,4.53988,2670.9,2670.4,7.48934]
[1739226362373,4.53988,2670.9,2670.4,3.74467]
[1739226362533,3.74421,2670.8,2670.4,3.74467]
[1739226362934,0.7958,2670.9,2670.4,3.74467]
[1739226363234,4.53986,2670.9,2670.4,3.74467]
[1739226364233,0.7958,2670.9,2670.5,3.74461]
[1739226364659,0.7958,2670.9,2670.4,3.74467]
[1739226364660,0.7958,2670.9,2670.8,3.74419]
[1739226365164,0.7958,2671.3,2670.8,3.74419]
[1739226365465,0.7958,2671.1,2670.7,3.74432]
[1739226367826,0.7958,2671.1,2670.7,0.0075]
[1739226368030,0.8288,2671.6,2671.3,3.74335]
[1739226368229,0.8288,2671.6,2671.5,3.74321]
[1739226368633,0.8288,2671.8,2671.5,3.74321]
[1739226368936,0.8288,2671.8,2671.3,4.54208]
[1739226369153,0.8288,2671.8,2671.3,4.54207]
[1739226369357,0.8288,2671.8,2671.4,3.74332]
[1739226370537,0.8288,2671.8,2671.7,3.74293]
[1739226370843,0.8288,2671.8,2671.6,3.74304]
[1739226371055,0.8288,2671.8,2671.7,3.74293]
[1739226371361,0.8288,2672.1,2671.7,3.74286]
[1739226372251,0.8288,2672.7,2671.9,0.0075]
[1739226372452,4.57041,2672.7,2672.1,3.74236]
[1739226372842,0.8288,2672.7,2672.2,3.74218]
[1739226373043,4.57034,2672.7,2672.1,3.74236]
[1739226373248,4.57034,2672.7,2672.1,3.74229]
[1739226373771,0.8288,2672.7,2672.3,3.74195]
[1739226376871,3.74141,2672.8,2672.3,3.74195]
[1739226378464,3.74155,2672.7,2672.2,0.7987]
[1739226378780,3.74141,2672.8,2672.2,4.54084]
[1739226379133,3.74162,2672.7,2672.2,0.7987]
[1739226380380,3.74178,2672.6,2672.2,0.7987]
[1739226380570,3.74219,2672.3,2671.9,0.7987]
[1739226380770,3.74195,2672.4,2671.7,6.14614408]
[1739226380962,3.74247,2672.1,2671.7,5.39]
[1739226381161,0.8069,2672.0,2671.7,3.0]
[1739226383185,0.8069,2672.0,2671.7,6.74292]
[1739226386055,3.74232,2672.2,2671.7,0.0075]
[1739226386257,3.74301,2671.7,2671.3,0.7815]
[1739226386512,3.7433,2671.5,2671.1,3.0]
[1739226386809,3.7433,2671.5,2671.1,0.0075]
[1739226387006,7.48662,2671.5,2671.1,0.0075]
[1739226387173,3.7433,2671.5,2671.1,0.0075]
[1739226387873,3.74308,2671.6,2671.1,3.75125]
[1739226388075,4.54992,2671.7,2671.1,0.0075]
[1739226388405,3.74325,2671.5,2671.1,0.0075]
[1739226389406,7.48656,2671.5,2671.1,0.0075]
[1739226389611,3.74325,2671.5,2671.1,0.0075]
[1739226389813,3.74325,2671.5,2671.0,3.0]
[1739226390013,3.74351,2671.3,2671.0,3.0]
[1739226390212,3.74351,2671.3,2670.8,4.52562]
[1739226390407,3.74351,2671.3,2670.9,0.0075]
[1739226390408,3.74379,2671.1,2670.9,0.0075]
[1739226391677,3.74379,2671.1,2670.8,0.0075]
[1739226392099,0.8069,2671.2,2670.8,0.0075]
[1739226392100,4.55057,2671.2,2670.8,0.0075]
[1739226392940,3.74415,2670.9,2670.4,0.7815]
[1739226393134,3.74421,2670.8,2670.5,0.0075]
[1739226394316,3.74399,2671.0,2670.5,0.0075]
[1739226394829,3.74416,2670.9,2670.5,0.0075]
[1739226394985,3.74399,2671.0,2670.5,0.0075]
[1739226395184,3.74417,2670.9,2670.5,0.0075]
[1739226395677,3.74417,2670.9,2670.3,3.7448]
[1739226395881,0.8069,2670.7,2670.1,3.74507]
[1739226396115,3.74447,2670.6,2670.2,3.0]
[1739226397519,8.29581,2670.7,2670.2,3.0]
[1739226397687,8.29581,2670.7,2670.1,3.74507]
[1739226397688,0.8069,2670.7,2670.1,3.0075]
[1739226397890,3.74452,2670.6,2670.1,6.74511]
[1739226398089,4.55132,2670.7,2670.2,3.74493]
[1739226398818,4.55132,2670.7,2670.1,10.49022]
[1739226399020,4.55132,2670.7,2670.2,3.74502]
[1739226399422,4.55132,2670.7,2670.1,3.0]
[1739226399423,3.74457,2670.6,2670.1,3.0]
[1739226399598,3.74454,2670.6,2670.1,6.74516]
[1739226400087,4.55132,2670.7,2670.1,6.74516]
[1739226400290,3.74462,2670.5,2670.1,3.0]
[1739226400721,4.55134,2670.7,2670.1,3.0]
[1739226401220,3.74454,2670.6,2670.1,10.49014]
[1739226401429,4.55134,2670.7,2670.2,3.74501]
[1739226401725,4.55134,2670.7,2670.1,3.0]
[1739226401927,3.74416,2670.9,2670.4,0.0075]
[1739226402128,0.8094,2670.9,2670.4,4.53489]
[1739226402318,4.55348,2670.9,2670.4,4.53489]
[1739226403129,4.55348,2670.9,2670.4,4.53492]
[1739226404803,3.74399,2671.0,2670.5,3.74453]
[1739226406636,3.74386,2671.1,2670.5,3.74453]
[1739226406935,3.74372,2671.2,2670.7,3.74432]
[1739226408436,3.74372,2671.2,2670.7,3.74426]
[1739226408636,3.74372,2671.2,2670.8,0.7827]
[1739226411027,0.8094,2671.3,2670.9,3.74398]
[1739226411336,4.55298,2671.3,2670.8,4.52688]
[1739226411853,3.74365,2671.2,2670.8,0.7827]
[1739226414824,3.74365,2671.2,2670.8,4.52685]
[1739226415421,3.74365,2671.2,2670.8,0.7827]
[1739226419430,7.48738,2671.2,2670.8,0.7827]
[1739226419741,3.74379,2671.1,2670.8,0.7827]
[1739226420442,3.74379,2671.1,2670.7,3.74423]
[1739226420763,3.74379,2671.1,2670.6,0.7968]
[1739226420764,3.74379,2671.1,2670.6,4.54126]
[1739226422159,3.74378,2671.1,2670.7,3.74428]